fUSD/lending_fUSD_20240204
["ID","MTS","AMOUNT","RATE_DAILY","PERIOD"]
[313258538,1707045045595,-290.07948265,0.00022932,2]
[313258539,1707045045607,-89.53651735,0.00022932,2]
[313258540,1707045045616,-437.029,0.00022932,2]
[313258541,1707045045625,-34.85848265,0.0002295,2]
[313258542,1707045045636,-2894.54151735,0.0002295,2]
[313258543,1707045045646,-1569.48334667,0.0002295,2]
[313258544,1707045045657,-713.51665333,0.0002295,2]
[313258545,1707045045666,-3084.19742094,0.0002295,2]
[313258546,1707045045677,-76.61157906,0.0002295,2]
[313258547,1707045045686,-799.80042743,0.0002295,2]
[313258548,1707045045701,-2645.57653317,0.0002295,2]
[313258549,1707045045712,-1280.958948,0.0002295,2]
[313258550,1707045045724,-1014.94089967,0.0002295,2]
[313258551,1707045045740,-1119.533309,0.0002295,2]
[313258552,1707045045751,-1068.42667419,0.0002295,2]
[313258553,1707045045766,-800.0,0.0002295,2]
[313258554,1707045045778,-1441.27823742,0.0002295,2]
[313258555,1707045045788,-459.57912001,0.0002295,2]
[313258556,1707045045804,-694.14833885,0.0002295,2]
[313258594,1707045053626,150.0,0.00022,2]
[313258596,1707045079930,1074.66013201,0.000252,120]
[313258601,1707045107238,565.69620634,0.00022074,2]
[313258603,1707045117064,2482.12405516,0.00022304,2]
[313258604,1707045126834,3198.37181468,0.00022074,2]
[313258605,1707045139537,150.0,0.00022,2]
[313258606,1707045144247,160.80919873,0.00022,2]
[313258607,1707045177253,1805.69,0.00022319,2]
[313258608,1707045189510,195.37,0.00022326,2]
[313258609,1707045207670,150.0,0.00022,2]
[313258610,1707045317882,1000.0,0.0002199,2]
[313258611,1707045325166,452.37,0.00020057,2]
[313258612,1707045325374,452.37,0.00022321,2]
[313258613,1707045428069,176.92,0.00022,2]
[313258614,1707045439725,500.0,0.00022,2]
[313258615,1707045604946,193.33,0.00021821,2]
[313258616,1707045621468,1843.61,0.00021815,2]
[313258617,1707045637843,195.37,0.00021797,2]
[313258618,1707045711195,160.87,0.00021802,2]
[313258619,1707045740487,200.0,0.00021802,2]
[313258620,1707045776979,431.81,0.00019918,2]
[313258621,1707045777191,431.81,0.00022182,2]
[313258622,1707045780548,201.771427,0.00021918,2]
[313258623,1707045903790,-150.0,0.00022501,2]
[313258624,1707045904331,-150.0,0.00022501,2]
[313258625,1707045904725,-150.0,0.00022501,2]
[313258626,1707045905109,-150.0,0.00022501,2]
[313258627,1707045905643,-150.0,0.00022501,2]
[313258628,1707045907695,550.0,0.00022,3]
[313258629,1707045907948,-150.0,0.00022501,2]
[313258630,1707045908338,-150.0,0.00022501,2]
[313258631,1707045909041,-150.0,0.00022501,2]
[313258632,1707045909535,-150.0,0.00022501,2]
[313258633,1707045910044,-150.0,0.00022501,2]
[313258634,1707045910445,-150.0,0.00022501,2]
[313258635,1707045910827,-150.0,0.00022501,2]
[313258636,1707045911442,-150.0,0.00022501,2]
[313258637,1707045912088,-150.0,0.00022501,2]
[313258638,1707045912761,162.80158799,0.000225,2]
[313258639,1707045913042,-150.0,0.00022501,2]
[313258640,1707045913236,159.37624852,0.000225,2]
[313258641,1707045914170,1376.35694735,0.000225,2]
[313258642,1707045918734,4503.42146419,0.000225,2]
[313258643,1707045925879,2605.36353515,0.000225,2]
[313258644,1707045929249,2153.66577902,0.000225,2]
[313258645,1707045929562,1650.0,0.00021907,2]
[313258646,1707045932729,513.68727167,0.000225,2]
[313258647,1707045935720,243.34831327,0.000225,2]
[313258648,1707045939480,2629.79197929,0.000225,2]
[313258649,1707045940339,229.14462659,0.000225,2]
[313258650,1707045942627,3155.7006203,0.000225,2]
[313258651,1707045943726,2790.43322248,0.000225,2]
[313258652,1707045958237,1207.94157059,0.000225,2]
[313258653,1707045963691,284.36346117,0.000225,2]
[313258654,1707045982697,1376.35694735,0.000225,2]
[313258655,1707045985747,159.37624852,0.000225,2]
[313258656,1707045987273,162.80158799,0.000225,2]
[313258657,1707046007252,513.68727167,0.000225,2]
[313258658,1707046008428,2605.36353515,0.000225,2]
[313258659,1707046037096,1536.34,0.00021908,2]
[313258660,1707046037633,176.92,0.00022,2]
[313258661,1707046187173,412.07,0.00020003,2]
[313258662,1707046187389,412.07,0.00022266,2]
[313258663,1707046204088,209.0,0.00021791,2]
[313258664,1707046223270,840.0,0.00021931,2]
[313258677,1707046231612,-513.68727167,0.00022547,2]
[313258678,1707046231622,-176.92,0.00022548,2]
[313258679,1707046231631,-482.82950513,0.00022606,2]
[313258680,1707046231642,-237.52049487,0.00022606,2]
[313258681,1707046231651,-733.41,0.00022607,2]
[313258682,1707046231660,-638.36775068,0.00022608,2]
[313258683,1707046231672,-87.05224932,0.00022608,2]
[313258684,1707046231681,-346.31271298,0.0002261,2]
[313258685,1707046231692,-386.57728702,0.0002261,2]
[313258686,1707046231701,-732.61,0.00022612,2]
[313258687,1707046231710,-730.52,0.00022614,2]
[313258688,1707046231722,-723.25,0.00022618,2]
[313258689,1707046231731,-25.23461123,0.0002262,2]
[313258690,1707046231742,-688.49538877,0.0002262,2]
[313258691,1707046231751,-722.05,0.00022622,2]
[313258692,1707046231760,-186.4,0.00022629,2]
[313258693,1707046231769,-203.47023431,0.00022798,2]
[313258694,1707046231784,-96.52976569,0.00022798,2]
[313258695,1707046231794,-150.0,0.00022798,2]
[313258696,1707046231804,-1753.56289871,0.00022799,2]
[313258697,1707046231823,-585.85365242,0.00022799,2]
[313258698,1707046231839,-611.97438854,0.00022799,2]
[313258699,1707046231850,-6039.52332435,0.00022799,2]
[313258700,1707046231872,-337.81503598,0.00022799,2]
[313258701,1707046231882,-231.3213116,0.00022874,2]
[313258702,1707046231896,-425.425,0.00022874,2]
[313258726,1707046237661,-377.2536884,0.00022874,2]
[313258727,1707046237678,-950.0,0.00022874,2]
[313258728,1707046237699,-0.79497047,0.00022874,2]
[313258729,1707046239470,-502.92080419,0.00022874,2]
[313258745,1707046240210,-719.92152545,0.00022874,2]
[313258746,1707046240383,-778.3893283,0.00022874,2]
[313258747,1707046240402,-865.97337159,0.00022874,2]
[313258748,1707046240413,-378.71110511,0.00022874,2]
[313258749,1707046240427,-460.28889489,0.00022874,2]
[313258750,1707046240437,-523.53326598,0.00022896,2]
[313258751,1707046240451,-1346.31370766,0.00022896,2]
[313258752,1707046240465,-509.73860691,0.00022896,2]
[313258753,1707046240478,-314.34671945,0.00022896,2]
[313258754,1707046240488,-334.67328055,0.00022897,2]
[313258755,1707046241006,-27.15381974,0.00022897,2]
[313258756,1707046241018,-235.676524,0.00022897,2]
[313258757,1707046241028,-429.39548861,0.00022897,2]
[313258758,1707046241064,-779.90372034,0.00022897,2]
[313258759,1707046241078,-37.18808718,0.00022897,2]
[313258760,1707046241092,-192.25679095,0.00022897,2]
[313258761,1707046241103,-668.46820905,0.00022897,2]
[313258911,1707046243087,-2014.55428605,0.00022897,2]
[313258912,1707046243097,-246.14738921,0.00022897,2]
[313258913,1707046243106,-955.46877915,0.00022897,2]
[313258914,1707046243116,-424.14483198,0.00022897,2]
[313258915,1707046243126,-703.22246294,0.00022897,2]
[313258916,1707046243135,-469.21883119,0.00022897,2]
[313258917,1707046243144,-158.21108525,0.00022897,2]
[313258918,1707046243153,-162.38291891,0.00022897,2]
[313258919,1707046243162,-2604.27365078,0.00022897,2]
[313258920,1707046243171,-4080.08920478,0.00022897,2]
[313258921,1707046243181,-4259.7878402,0.00022898,2]
[313258922,1707046243190,-640.77824363,0.00022898,2]
[313258923,1707046243199,-181874.667,0.00022899,2]
[313258924,1707046243208,-3247.774167,0.000229,2]
[313258925,1707046243217,-153.47438051,0.000229,2]
[313258926,1707046243226,-507.3838,0.000229,2]
[313258927,1707046243235,-741.26911808,0.000229,2]
[313258929,1707046243244,-609.83322762,0.000229,2]
[313258931,1707046243253,-193.33,0.00022912,2]
[313258933,1707046243263,-2893.43138604,0.00022994,2]
[313258935,1707046243272,-1073.58676382,0.00022994,2]
[313258937,1707046243282,-1213.5544367,0.00022994,2]
[313258939,1707046243291,-5219.02106973,0.00022994,2]
[313258941,1707046243300,-563.27924342,0.00022994,2]
[313258943,1707046243309,-2313.11582133,0.00022994,2]
[313258946,1707046243328,-155.0,0.00022994,2]
[313258948,1707046243339,-7298.44958612,0.00022994,2]
[313258951,1707046243349,-859.0,0.00022995,2]
[313258952,1707046243358,-1138.0,0.00022995,2]
[313258954,1707046243368,-150.0,0.00022995,2]
[313258957,1707046243377,-320.0,0.00022995,2]
[313258960,1707046243387,-342.0,0.00022995,2]
[313258964,1707046243397,-19789.0,0.00022995,2]
[313258967,1707046243406,-881.06416384,0.00022995,2]
[313258971,1707046243424,-499.0787929,0.00022995,2]
[313258975,1707046243436,-161.63804326,0.00022995,2]
[313258978,1707046243445,-1685.86569197,0.00022995,2]
[313258981,1707046243457,-495.803,0.00022995,2]
[313259008,1707046245746,-265.09930803,0.00022995,2]
[313259009,1707046245755,-4196.0,0.00022995,2]
[313259010,1707046245765,-936.485,0.00022995,2]
[313259011,1707046245775,-26805.96986661,0.00022996,2]
[313259015,1707046245802,-390.56523239,0.00022897,2]
[313259016,1707046245811,-68363.29891057,0.00022996,2]
[313259017,1707046245820,-5457.1279531,0.00022998,2]
[313259018,1707046245829,-158.19984206,0.00022998,2]
[313259019,1707046245839,-4708.86041879,0.00022998,2]
[313259020,1707046245849,-1223.70994235,0.00022998,2]
[313259021,1707046245858,-249.46647659,0.00022998,2]
[313259022,1707046245868,-362.66839239,0.00022998,2]
[313259023,1707046245878,-525.21369596,0.00022998,2]
[313259024,1707046245887,-289.74601572,0.00022998,2]
[313259025,1707046245897,-155.0,0.00022998,2]
[313259026,1707046245906,-197.29019107,0.00022998,2]
[313259027,1707046245915,-156.21135873,0.00022998,2]
[313259028,1707046245925,-1404.85920199,0.00022998,2]
[313259029,1707046245934,-312.20514002,0.00022998,2]
[313259030,1707046245944,-155.0,0.00022998,2]
[313259031,1707046245953,-282.15685369,0.00022998,2]
[313259032,1707046245962,-917.73887216,0.00022998,2]
[313259033,1707046245971,-500.0,0.00022998,2]
[313259034,1707046245980,-172.36279521,0.00022998,2]
[313259035,1707046245990,-155.78078459,0.00022998,2]
[313259036,1707046245999,-525.17910571,0.00022998,2]
[313259037,1707046246008,-1968.40634476,0.00022998,2]
[313259038,1707046246018,-188.4021558,0.00022998,2]
[313259039,1707046246027,-630.55738904,0.00022998,2]
[313259040,1707046246036,-177.10471114,0.00022998,2]
[313259041,1707046246045,-1259.57085833,0.00022998,2]
[313259042,1707046246056,-212.25793733,0.00022998,2]
[313259043,1707046246065,-2796.99306282,0.00022998,2]
[313259044,1707046246075,-768.69623108,0.00022998,2]
[313259045,1707046246083,-365.07230987,0.00022998,2]
[313259046,1707046246092,-315.05678162,0.00022998,2]
[313259047,1707046246101,-419.53227465,0.00022998,2]
[313259048,1707046246110,-287.30832033,0.00022998,2]
[313259049,1707046246119,-211.20606042,0.00022998,2]
[313259050,1707046246127,-292.08787694,0.00022998,2]
[313259051,1707046246136,-476.37887876,0.00022998,2]
[313259052,1707046246145,-373.14406517,0.00022998,2]
[313259053,1707046246154,-199.69563475,0.00022998,2]
[313259054,1707046246163,-1814.49252392,0.00022998,2]
[313259055,1707046246172,-7720.89636198,0.00022998,2]
[313259056,1707046246181,-3014.80555761,0.00022999,2]
[313259057,1707046246190,-234.98260472,0.00022999,2]
[313259058,1707046246199,-360.43268584,0.00022999,2]
[313259059,1707046246207,-354.25062439,0.00022999,2]
[313259060,1707046246216,-457.92864927,0.00022999,2]
[313259061,1707046246225,-500.0,0.00022999,2]
[313259062,1707046246234,-500.0,0.00022999,2]
[313259063,1707046246243,-500.0,0.00022999,2]
[313259064,1707046246252,-500.0,0.00022999,2]
[313259065,1707046246261,-500.0,0.00022999,2]
[313259066,1707046246270,-500.0,0.00022999,2]
[313259067,1707046246279,-500.0,0.00022999,2]
[313259068,1707046246288,-500.0,0.00022999,2]
[313259069,1707046246297,-500.0,0.00022999,2]
[313259070,1707046246307,-500.0,0.00022999,2]
[313259071,1707046246317,-498.17436288,0.00022999,2]
[313259072,1707046246326,-500.0,0.00022999,2]
[313259073,1707046246336,-500.0,0.00022999,2]
[313259074,1707046246345,-500.0,0.00022999,2]
[313259075,1707046246355,-500.0,0.00022999,2]
[313259076,1707046246365,-500.0,0.00022999,2]
[313259077,1707046246374,-500.0,0.00022999,2]
[313259078,1707046246383,-500.0,0.00022999,2]
[313259079,1707046246393,-1071.38109058,0.00022999,2]
[313259080,1707046246402,-17021.3847385,0.00023,3]
[313259081,1707046246415,-609.83322762,0.00023,3]
[313259082,1707046246426,-563.27924342,0.00023,3]
[313259083,1707046261539,150.0,0.00022,2]
[313259084,1707046287233,2482.12405516,0.00022307,2]
[313259085,1707046288809,202.7392099,0.00021791,2]
[313259086,1707046288837,541.30052825,0.00022077,2]
[313259087,1707046291135,220.41371843,0.00022,2]
[313259088,1707046293043,3198.13240051,0.00021847,2]
[313259089,1707046327327,150.0,0.00022,2]
[313259090,1707046395528,159.91567417,0.00022,2]
[313259091,1707046485764,1562.68,0.00022418,2]
[313259092,1707046492758,150.0,0.00022441,2]
[313259123,1707046556707,202.81,0.00022345,2]
[313259124,1707046576344,23900.0,0.00022345,2]
[313259125,1707046608853,394.31,0.00020424,2]
[313259126,1707046662613,176.92,0.00022,2]
[313259127,1707046681251,328.0,0.00022178,2]
[313259128,1707046696656,200.0,0.00022178,2]
[313259129,1707046698843,191.93,0.00022178,2]
[313259130,1707046722146,171.54,0.00017742,2]
[313259131,1707046809221,2000.0,0.00022228,2]
[313259132,1707046843739,250.0,0.00022178,2]
[313259133,1707046921762,1686.75,0.00022232,2]
[313259134,1707046929799,884.17547962,0.000225,2]
[313259135,1707046988997,158.09,0.00022496,2]
[313259136,1707047036376,421.3,0.00020431,2]
[313259137,1707047156794,737.6,0.00022341,2]
[313259138,1707047167502,234.83,0.00022392,2]
[313259139,1707047284232,176.92,0.00022,2]
[313259140,1707047378035,150.0,0.00022,2]
[313259153,1707047431812,-876.46031176,0.00022545,2]
[313259154,1707047431825,-188.19554173,0.00022545,2]
[313259155,1707047431834,-194.25263461,0.00022546,2]
[313259156,1707047431845,-495.9454583,0.00022546,2]
[313259157,1707047431855,-176.92,0.00022548,2]
[313259158,1707047431864,-268.0366625,0.00022569,2]
[313259159,1707047431875,-2378.59324902,0.00022569,2]
[313259160,1707047431891,-1737.50061937,0.00022569,2]
[313259161,1707047431925,-1225.81003387,0.00022569,2]
[313259162,1707047431934,-364.44458886,0.00022695,2]
[313259163,1707047431946,-56.85541114,0.00022695,2]
[313259164,1707047431954,-150.0,0.00022698,2]
[313259165,1707047431963,-150.0,0.00022698,2]
[313259166,1707047431973,-304.8273596,0.00022699,2]
[313259167,1707047431987,-257.11704311,0.00022699,2]
[313259168,1707047431999,-15046.39339729,0.00022699,2]
[313259169,1707047432007,-851.4828,0.00022699,2]
[313259170,1707047432016,-1000.0,0.00022699,2]
[313259171,1707047432025,-3349.32852024,0.00022699,2]
[313259172,1707047432036,-615.24466553,0.00022699,2]
[313259173,1707047432055,-1079.5341271,0.00022699,2]
[313259174,1707047432066,-1922.63282376,0.00022699,2]
[313259175,1707047432077,-500.61671431,0.00022699,2]
[313259176,1707047432089,-965.17012946,0.00022699,2]
[313259178,1707047432100,-363.6572196,0.00022699,2]
[313259179,1707047432109,-1255.55963922,0.00022718,2]
[313259181,1707047432118,-605.32079807,0.0002277,2]
[313259183,1707047432129,-612.90951479,0.0002277,2]
[313259186,1707047432140,-741.8811006,0.0002277,2]
[313259189,1707047437845,-1080.90325087,0.0002277,2]
[313259190,1707047437857,-4305.10945237,0.0002277,2]
[313259191,1707047437870,-9507.8758833,0.0002277,2]
[313259192,1707047437881,-4600.72918946,0.00022799,2]
[313259193,1707047437894,-2168.96372959,0.00022799,2]
[313259194,1707047437907,-592.4481492,0.00022799,2]
[313259195,1707047437925,-907.13170623,0.00022799,2]
[313259196,1707047437937,-1001.86649474,0.00022799,2]
[313259197,1707047437958,-7352.27100488,0.00022799,2]
[313259198,1707047437970,-286.6770001,0.00022799,2]
[313259199,1707047437990,-1211.94,0.00022799,2]
[313259200,1707047438064,-782.52983112,0.00022799,2]
[313259201,1707047438075,-2546.38577049,0.00022799,2]
[313259206,1707047440501,-10652.10061041,0.00022799,2]
[313259207,1707047441242,-1615.75283883,0.00022799,2]
[313259208,1707047441253,-979.37023825,0.00022799,2]
[313259217,1707047442833,-56696.82556391,0.00022799,2]
[313259218,1707047442845,-2627.76022133,0.00022799,2]
[313259219,1707047442888,-2842.54318637,0.00022799,2]
[313259220,1707047442899,-327.71451975,0.00022799,2]
[313259221,1707047442911,-403.96999975,0.00022799,2]
[313259222,1707047442942,-728.92132733,0.00022799,2]
[313259223,1707047442999,-2514.06406546,0.00022799,2]
[313259224,1707047443013,-296.95776435,0.00022799,2]
[313259225,1707047443025,-1060.31500001,0.00022799,2]
[313259226,1707047443037,-566.62860673,0.00022799,2]
[313259227,1707047443054,-426.96508485,0.00022799,2]
[313259228,1707047443107,-338.68288348,0.00022799,2]
[313259229,1707047443162,-681.77888495,0.00022799,2]
[313259231,1707047443174,-474.58390042,0.00022799,2]
[313259530,1707047445991,-299.33406665,0.00022799,2]
[313259536,1707047446036,-2452.6972002,0.00022799,2]
[313259543,1707047446096,-4572.52516995,0.00022799,2]
[313259545,1707047446107,-295.25514135,0.00022799,2]
[313259547,1707047446118,-869.28470819,0.00022799,2]
[313259552,1707047446153,-10935.81079955,0.00022799,2]
[313259554,1707047446166,-83790.47714212,0.00022799,2]
[313259555,1707047446175,-499.99,0.00022799,2]
[313259556,1707047446185,-2977.12631975,0.000229,2]
[313259557,1707047446195,-10000.0,0.000229,2]
[313259558,1707047446203,-46618.23,0.000229,2]
[313259559,1707047446212,-153.47438051,0.000229,2]
[313259560,1707047446222,-265.32903454,0.000229,2]
[313259561,1707047446231,-211.3638569,0.000229,2]
[313259562,1707047446240,-552.87555977,0.000229,2]
[313259565,1707047446253,-564.99356077,0.00022987,2]
[313259567,1707047446262,-2486.1203004,0.00022994,2]
[313259569,1707047446271,-2865.0,0.00022995,2]
[313259571,1707047446280,-236.0,0.00022995,2]
[313259573,1707047446290,-428.0,0.00022995,2]
[313259575,1707047446299,-1942.0,0.00022995,2]
[313259577,1707047446308,-1001.0,0.00022995,2]
[313259579,1707047446318,-150.0,0.00022995,2]
[313259581,1707047446327,-320.0,0.00022995,2]
[313259583,1707047446336,-342.0,0.00022995,2]
[313259585,1707047446345,-1567.287,0.00022995,2]
[313259587,1707047446354,-2926.506,0.00022995,2]
[313259589,1707047446363,-1034.0,0.00022995,2]
[313259591,1707047446373,-190.69656832,0.00022997,2]
[313259593,1707047446382,-10796.50343727,0.00022997,2]
[313259595,1707047446392,-235.71058665,0.00022998,2]
[313259597,1707047446401,-254.84475444,0.00022998,2]
[313259599,1707047446411,-155.20593586,0.00022998,2]
[313259601,1707047446420,-3308.69286577,0.00022998,2]
[313259603,1707047446429,-294.07125296,0.00022999,2]
[313259605,1707047446438,-7892.1291925,0.00022999,2]
[313259608,1707047446455,-13216.74927006,0.00023,3]
[313259611,1707047446474,-916.65069652,0.00023,3]
[313259949,1707047479039,409.9,0.00020837,2]
[313259952,1707047545909,150.0,0.00022,2]
[313259953,1707047545938,160.87,0.00022451,2]
[313259954,1707047559696,19017.67593218,0.00020837,2]
[313259955,1707047561553,421.40931563,0.00022078,2]
[313259956,1707047567437,2482.12405516,0.00022308,2]
[313259957,1707047581552,277.33891441,0.00022078,2]
[313259958,1707047619157,409.92,0.00022331,2]
[313259959,1707047639442,181.17,0.0002228,2]
[313259960,1707047639538,1347.02,0.00022458,2]
[313259961,1707047644029,208.0,0.00022036,2]
[313259962,1707047711300,550.0,0.00022,3]
[313259963,1707047753653,250.0,0.00022292,2]
[313259964,1707047819723,1158.40185841,0.00022284,2]
[313259966,1707047903871,176.92,0.00022,2]
[313259967,1707047913757,500.0,0.00022,2]
[313259968,1707047943294,23900.0,0.0002212,2]
[313259969,1707047948765,412.22,0.00020221,2]
[313259970,1707047948977,412.22,0.00022485,2]
[313259971,1707047956109,159.16,0.00022305,2]
[313259972,1707047966031,1998.92,0.00022165,2]
[313259973,1707047988715,200.0,0.00022165,2]
[313259974,1707048035174,-1158.40185842,0.00022544,2]
[313259975,1707048035196,-77.59814158,0.00022548,2]
[313259976,1707048108637,187.86,0.00022119,2]
[313259977,1707048145776,2000.0,0.00022109,2]
[313259978,1707048167723,672.06,0.00022109,2]
[313259979,1707048190674,9099.0,0.000252,120]
[313259980,1707048209201,564.83105628,0.00022119,4]
[313259981,1707048263789,234.68490786,0.000225,2]
[313259982,1707048317987,500.0,0.00022,2]
[313259983,1707048318758,500.0,0.00022,2]
[313259984,1707048319504,500.0,0.00022,2]
[313259985,1707048320255,500.0,0.00022,2]
[313259986,1707048321024,500.0,0.00022,2]
[313259987,1707048322056,500.0,0.00022,2]
[313259988,1707048323049,500.0,0.00022,2]
[313259989,1707048323827,500.0,0.00022,2]
[313259990,1707048324613,510.74,0.00022,2]
[313259991,1707048380287,666.59,0.00022076,2]
[313259992,1707048397876,159.16,0.00022193,2]
[313259993,1707048401082,392.68,0.00020106,2]
[313259994,1707048401277,392.68,0.0002237,2]
[313259995,1707048436531,167.3,0.00022038,2]
[313259996,1707048448244,1400.0,0.000225,8]
[313259997,1707048450750,1893.15,0.00022028,2]
[313259998,1707048457624,500.0,0.00022,2]
[313259999,1707048458389,500.0,0.00022,2]
[313260000,1707048459159,500.0,0.00022,2]
[313260001,1707048459928,500.0,0.00022,2]
[313260002,1707048460714,500.0,0.00022,2]
[313260003,1707048461459,500.0,0.00022,2]
[313260004,1707048462224,500.0,0.00022,2]
[313260005,1707048462978,500.0,0.00022,2]
[313260006,1707048463733,500.0,0.00022,2]
[313260007,1707048464510,500.0,0.00022,2]
[313260008,1707048465275,500.0,0.00022,2]
[313260009,1707048466016,500.0,0.00022,2]
[313260010,1707048466897,500.0,0.00022,2]
[313260011,1707048467557,500.0,0.00022,2]
[313260012,1707048468316,500.0,0.00022,2]
[313260013,1707048469637,500.0,0.00022,2]
[313260014,1707048470237,500.0,0.00022,2]
[313260015,1707048471000,500.0,0.00022,2]
[313260016,1707048471758,500.0,0.00022,2]
[313260017,1707048526067,176.92,0.00022,2]
[313260018,1707048538101,500.0,0.00022,2]
[313260019,1707048538993,500.0,0.00022,2]
[313260020,1707048540024,500.0,0.00022,2]
[313260021,1707048540776,500.0,0.00022,2]
[313260022,1707048541480,792.46608911,0.00022,2]
[313260023,1707048541549,500.0,0.00022,2]
[313260024,1707048542307,500.0,0.00022,2]
[313260025,1707048543100,500.0,0.00022,2]
[313260026,1707048543853,500.0,0.00022,2]
[313260027,1707048545006,500.0,0.00022,2]
[313260028,1707048545768,500.0,0.00022,2]
[313260029,1707048546512,500.0,0.00022,2]
[313260030,1707048547261,500.0,0.00022,2]
[313260031,1707048548017,500.0,0.00022,2]
[313260032,1707048548787,500.0,0.00022,2]
[313260033,1707048549541,500.0,0.00022,2]
[313260034,1707048550300,425.01,0.00022,2]
[313260035,1707048579749,150.0,0.00022,2]
[313260036,1707048617203,500.0,0.00022,2]
[313260037,1707048617952,500.0,0.00022,2]
[313260038,1707048618708,500.0,0.00022,2]
[313260042,1707048632010,-155.0,0.00022521,2]
[313260043,1707048632019,-177.22459552,0.00022522,2]
[313260044,1707048632029,-176.92,0.00022548,2]
[313260045,1707048632038,-645.33911199,0.000226,8]
[313260046,1707048632053,-1130.00750793,0.000226,8]
[313260047,1707048632130,-1124.65338008,0.000226,8]
[313260048,1707048632140,-351.00120743,0.00022622,2]
[313260049,1707048632177,-283.25614464,0.00022622,2]
[313260050,1707048632191,-87.47264793,0.00022622,2]
[313260051,1707048632201,-157.66,0.00022625,2]
[313260052,1707048632212,-113.35884775,0.00022699,2]
[313260053,1707048632224,-186.64115225,0.00022699,2]
[313260054,1707048632233,-806.1960156,0.00022699,2]
[313260055,1707048632249,-193.8039844,0.00022699,2]
[313260056,1707048632257,-156.2619841,0.00022699,2]
[313260057,1707048632267,-150.0,0.00022699,2]
[313260058,1707048632275,-4400.0,0.000227,8]
[313260059,1707048632285,-495.70868768,0.00022768,2]
[313260061,1707048632294,-410.9,0.00022768,2]
[313260092,1707048632481,-159.16,0.00022771,2]
[313260094,1707048632492,-156.26198408,0.000228,2]
[313260096,1707048632502,-5812.0065,0.000228,2]
[313260098,1707048632511,-5800.0,0.000228,8]
[313260100,1707048632520,-500.0,0.00022816,2]
[313260102,1707048632529,-1889.27771131,0.0002289,2]
[313260104,1707048632540,-499.99,0.00022899,2]
[313260106,1707048632551,-705.46916905,0.000229,2]
[313260108,1707048632560,-156.26198408,0.000229,2]
[313260110,1707048632569,-1675.87073862,0.000229,2]
[313260113,1707048632582,-499.13548228,0.000229,2]
[313260130,1707048637407,1077.79146081,0.00022442,2]
[313260131,1707048638978,-1000.0,0.000229,2]
[313260132,1707048639037,-727.11163686,0.000229,2]
[313260133,1707048639048,-741.27723955,0.000229,2]
[313260134,1707048639061,-420.8888349,0.000229,2]
[313260135,1707048639074,-6689.62664889,0.000229,2]
[313260136,1707048639085,-107544.0894189,0.000229,2]
[313260137,1707048639094,-2729.03245978,0.000229,2]
[313260138,1707048639105,-406.55548508,0.000229,2]
[313260139,1707048639115,-387.30574974,0.000229,2]
[313260140,1707048639124,-508.49927956,0.000229,2]
[313260141,1707048639133,-494.17941204,0.000229,2]
[313260142,1707048639142,-266.32427519,0.000229,2]
[313260143,1707048639151,-155.56987769,0.000229,2]
[313260144,1707048639160,-367.9806925,0.000229,2]
[313260145,1707048639169,-7300.0,0.000229,8]
[313260146,1707048639178,-430.251,0.0002295,2]